fUST/lending_fUST_20250309
["ID","MTS","AMOUNT","RATE_DAILY","PERIOD"]
[355727571,1741510238431,-621.133276,0.00048,120]
[355727573,1741510238441,-194.585334,0.00048219,2]
[355727575,1741510238450,-201.95293855,0.00048373,10]
[355727577,1741510238459,-500.28447503,0.00048373,10]
[355727579,1741510238469,-150.0,0.00048373,10]
[355727580,1741510238478,-151.0,0.000484,21]
[355727581,1741510238487,-865915.35450584,0.000484,120]
[355727699,1741510243213,-151.0,0.00047578,120]
[355727701,1741510243224,-621.133276,0.0004763,120]
[355727702,1741510243233,-151.0,0.0004799,120]
[355727704,1741510243243,-621.133276,0.00048,120]
[355727706,1741510243252,-151.0,0.00048,120]
[355727707,1741510243262,-430.45676122,0.000484,120]
[355727708,1741510243274,-5253.12402755,0.000484,120]
[355727709,1741510243292,-8858.4325014,0.000484,120]
[355727710,1741510243331,-136.0743507,0.000484,120]
[355727723,1741510264328,196.0,0.00031391,7]
[355727724,1741510264680,311.0,0.00031391,7]
[355727725,1741510265060,150.0,0.00031391,7]
[355727726,1741510265431,191.0,0.00031391,7]
[355727727,1741510265829,150.0,0.00031391,7]
[355727728,1741510335566,500.0,0.00031,10]
[355727729,1741510335898,500.0,0.00031,10]
[355727730,1741510336299,621.11752201,0.0002802,2]
[355727731,1741510343561,501.89757263,0.00031,10]
[355727732,1741510347735,500.0,0.00031,10]
[355727733,1741510348097,735.37721865,0.0002802,2]
[355727738,1741511131170,-150.0,0.000309,2]
[355727739,1741511131191,-500.0,0.00031,10]
[355727740,1741511131213,-164.131121,0.0003589,2]
[355727741,1741511131234,-2767.2213188,0.00036294,64]
[355727742,1741511131256,-820.89426143,0.000379,8]
[355727743,1741511131278,-194.585334,0.00038356,2]
[355727744,1741511131301,-400.0,0.00039024,5]
[355727745,1741511131323,-176.68090518,0.00039025,114]
[355727746,1741511131343,-2776.11213603,0.00039025,2]
[355727747,1741511250113,-179.5770686,0.00031,10]
[355727748,1741511251188,-69.37451425,0.00031,10]
[355727749,1741511251209,-545.11647275,0.00036925,2]
[355727750,1741511251232,-179.35,0.00039116,2]
[355727751,1741511251254,-162.76,0.00039117,2]
[355727752,1741511251276,-400.0,0.00039122,5]
[355727753,1741511251300,-463.49940901,0.00039123,2]
[355727755,1741511348109,-152.53,0.00039,120]
[355727756,1741511351202,-500.0,0.00039122,15]
[355727757,1741511351227,-500.0,0.00039122,2]
[355727758,1741511351264,-500.0,0.00039122,15]
[355727759,1741511351289,-245.40871748,0.00039122,15]
[355727760,1741511351314,-500.0,0.00039122,2]
[355727761,1741511351337,-500.0,0.00039122,15]
[355727762,1741511351359,-425.55213806,0.00039122,15]
[355727763,1741511351385,-586.75690982,0.00039122,15]
[355727764,1741511351408,-500.0,0.00039122,15]
[355727765,1741511351435,-500.0,0.00039122,2]
[355727766,1741511351459,-550.0,0.00039122,15]
[355727767,1741511351481,-500.0,0.00039122,15]
[355727768,1741511351504,-500.0,0.00039122,15]
[355727769,1741511351527,-500.0,0.00039122,2]
[355727770,1741511351557,-500.0,0.00039122,2]
[355727771,1741511351579,-500.0,0.00039122,15]
[355727772,1741511351603,-500.0,0.00039122,15]
[355727773,1741511351628,-500.0,0.00039122,2]
[355727774,1741511351651,-500.0,0.00039122,15]
[355727775,1741511351673,-500.0,0.00039122,15]
[355727776,1741511351697,-500.0,0.00039122,2]
[355727777,1741511351721,-500.0,0.00039122,2]
[355727778,1741511351744,-500.0,0.00039122,15]
[355727779,1741511351767,-500.0,0.00039122,15]
[355727780,1741511351792,-500.0,0.00039122,2]
[355727781,1741511351814,-500.0,0.00039122,15]
[355727782,1741511351839,-500.0,0.00039122,2]
[355727783,1741511351863,-500.0,0.00039122,15]
[355727784,1741511351886,-500.0,0.00039122,2]
[355727785,1741511351911,-500.0,0.00039122,15]
[355727786,1741511351935,-500.0,0.00039122,2]
[355727787,1741511351963,-500.0,0.00039122,15]
[355727788,1741511351985,-500.0,0.00039122,15]
[355727789,1741511352011,-500.0,0.00039122,2]
[355727790,1741511352034,-500.0,0.00039122,2]
[355727791,1741511352058,-500.0,0.00039122,15]
[355727792,1741511352084,-500.0,0.00039122,2]
[355727793,1741511352109,-500.0,0.00039122,15]
[355727794,1741511352132,-500.0,0.00039122,15]
[355727795,1741511352161,-500.0,0.00039122,15]
[355727796,1741511352187,-500.0,0.00039122,2]
[355727797,1741511352212,-612.34770574,0.00039122,2]
[355727798,1741511352237,-422.60907249,0.00039122,15]
[355727799,1741511352262,-500.0,0.00039122,2]
[355727800,1741511352288,-500.0,0.00039122,2]
[355727801,1741511352313,-500.0,0.00039122,2]
[355727802,1741511352339,-500.0,0.00039122,2]
[355727803,1741511352363,-500.0,0.00039122,2]
[355727804,1741511352387,-500.0,0.00039122,2]
[355727805,1741511352410,-500.0,0.00039122,2]
[355727806,1741511352435,-500.0,0.00039122,2]
[355727807,1741511352566,-500.0,0.00039122,2]
[355727808,1741511352593,-500.0,0.00039122,2]
[355727809,1741511352616,-500.0,0.00039122,2]
[355727810,1741511352643,-500.0,0.00039122,2]
[355727811,1741511352667,-500.0,0.00039122,2]
[355727812,1741511352692,-258.14344661,0.00039122,2]
[355727813,1741511352716,-500.0,0.00039122,2]
[355727814,1741511352740,-500.0,0.00039122,2]
[355727815,1741511352763,-500.0,0.00039122,2]
[355727816,1741511352787,-500.0,0.00039122,2]
[355727817,1741511352811,-594.24950147,0.00039126,15]
[355727818,1741511352832,-639.37984386,0.00039126,15]
[355727819,1741511352853,-24900.0,0.00039127,2]
[355727820,1741511352875,-500.0,0.000392,2]
[355727821,1741511352896,-500.0,0.000392,5]
[355727822,1741511352916,-500.0,0.000392,5]
[355727823,1741511352937,-500.0,0.000392,5]
[355727824,1741511352958,-500.0,0.000392,5]
[355727825,1741511352979,-370.23883468,0.000392,5]
[355727826,1741511353000,-2018.6108861,0.00039869,2]
[355727827,1741511353023,-2560.8589,0.0004,120]
[355727828,1741511353044,-162.76,0.00040235,2]
[355727829,1741511353065,-815.96873,0.00040245,2]
[355727830,1741511353086,-153.0,0.00041,14]
[355727831,1741511353107,-545.11647275,0.00041925,2]
[355727832,1741511405401,1027.3267933,0.00042346,2]
[355727891,1741511432308,-964.41760768,0.00044579,2]
[355727893,1741511432317,-793.53111945,0.000449,10]
[355727895,1741511432327,-208.18624473,0.00045662,2]
[355727897,1741511432336,-550.0,0.00045999,5]
[355727899,1741511432346,-4730.95,0.00046,60]
[355727901,1741511432355,-176.68090518,0.00046455,120]
[355727903,1741511432365,-3006.31564698,0.00046475,28]
[355727905,1741511432375,-330.83388139,0.00046475,2]
[355727906,1741511432384,-1278.24092288,0.00046555,4]
[355727907,1741511432393,-3834.72276864,0.00046565,4]
[355727908,1741511432402,-162.77,0.00046565,2]
[355727909,1741511432411,-162.77,0.00046565,2]
[355727910,1741511432420,-162.77,0.00046565,2]
[355727911,1741511432429,-162.77,0.00046565,2]
[355727912,1741511432438,-162.77,0.00046565,2]
[355727913,1741511432448,-500.0,0.00046573,10]
[355727914,1741511432457,-500.0,0.00046573,10]
[355727915,1741511432466,-375.95088105,0.00046573,2]
[355727916,1741511432475,-500.0,0.00046573,10]
[355727917,1741511432486,-425.6513612,0.00046573,10]
[355727918,1741511432495,-447.5658907,0.00046574,31]
[355727919,1741511432504,-415.97465103,0.00046574,120]
[355727920,1741511432513,-501.66697604,0.00046575,120]
[355727921,1741511432522,-502.97102885,0.00046575,120]
[355727922,1741511432531,-500.0,0.00046575,120]
[355727923,1741511432540,-500.0,0.00046575,120]
[355727924,1741511432549,-500.0,0.00046575,120]
[355727925,1741511432558,-500.0,0.00046575,120]
[355727926,1741511432571,-500.0,0.00046575,120]
[355727927,1741511432580,-500.0,0.00046575,120]
[355727928,1741511432590,-500.0,0.00046575,120]
[355727929,1741511432599,-500.0,0.00046575,120]
[355727930,1741511432611,-500.0,0.00046575,120]
[355727931,1741511432620,-500.0,0.00046575,120]
[355727932,1741511432629,-553.75880538,0.00046575,120]
[355727933,1741511432639,-500.0,0.00046575,120]
[355727934,1741511432650,-500.0,0.00046575,120]
[355727936,1741511432659,-500.0,0.00046575,120]
[355727938,1741511432668,-12597.42,0.00046575,2]
[355727940,1741511432677,-500.0,0.00046575,120]
[355727941,1741511432686,-500.0,0.00046575,120]
[355727942,1741511432695,-512.77604628,0.00046575,120]
[355727943,1741511432704,-500.0,0.00046575,120]
[355727944,1741511432714,-500.0,0.00046575,120]
[355727945,1741511432723,-500.0,0.00046575,120]
[355727946,1741511432839,-510.18590726,0.00046575,120]
[355727947,1741511432851,-500.0,0.00046575,120]
[355727948,1741511432862,-500.0,0.00046575,120]
[355727949,1741511432872,-500.0,0.00046575,120]
[355727950,1741511432881,-500.0,0.00046575,120]
[355727951,1741511432890,-500.0,0.00046575,120]
[355727952,1741511432899,-500.0,0.00046575,120]
[355727953,1741511432909,-500.0,0.00046575,120]
[355727954,1741511432918,-500.0,0.00046575,120]
[355727955,1741511432927,-500.0,0.00046575,120]
[355727956,1741511432936,-500.0,0.00046575,120]
[355727957,1741511432945,-500.0,0.00046575,120]
[355727958,1741511432954,-500.0,0.00046575,120]
[355727959,1741511432964,-500.0,0.00046575,120]
[355727960,1741511432973,-500.0,0.00046575,120]
[355727961,1741511432983,-500.0,0.00046575,120]
[355727962,1741511432992,-664.83,0.00046575,120]
[355727963,1741511433001,-500.0,0.00046575,120]
[355727964,1741511433011,-500.0,0.00046575,120]
[355727965,1741511433021,-500.0,0.00046575,120]
[355727966,1741511433031,-1000.0,0.00046575,5]
[355727967,1741511433041,-500.0,0.00046575,120]
[355727968,1741511433051,-500.0,0.00046575,120]
[355727969,1741511433060,-500.0,0.00046575,120]
[355727970,1741511433070,-502.22846609,0.00046575,120]
[355727971,1741511433080,-514.21910545,0.00046575,120]
[355727972,1741511433090,-596.92,0.00046575,120]
[355727973,1741511433100,-209.68770067,0.00046575,7]
[355727974,1741511433110,-500.0,0.00046575,120]
[355727975,1741511433120,-500.0,0.00046575,120]
[355727976,1741511433130,-500.06146085,0.00046575,120]
[355727977,1741511433139,-513.164711,0.00046575,120]
[355727978,1741511433148,-500.0,0.00046575,120]
[355727979,1741511433158,-500.0,0.00046575,120]
[355727980,1741511433168,-930.14,0.00046575,120]
[355727981,1741511433178,-373.96686982,0.00046575,120]
[355727982,1741511433188,-500.0,0.00046575,120]
[355727983,1741511433198,-500.0,0.00046575,120]
[355727984,1741511433207,-500.0,0.00046575,120]
[355727985,1741511433216,-500.0,0.00046575,120]
[355727986,1741511433226,-500.0,0.00046575,120]
[355727987,1741511433235,-500.0,0.00046575,120]
[355727988,1741511433245,-500.0,0.00046575,120]
[355727989,1741511433255,-500.0,0.00046575,120]
[355727990,1741511433265,-500.0,0.00046575,120]
[355727991,1741511433275,-500.0,0.00046575,120]
[355727992,1741511433284,-500.0,0.00046575,120]
[355727993,1741511433294,-500.0,0.00046575,120]
[355727994,1741511433303,-687.8,0.00046575,120]
[355727995,1741511433313,-609.75740665,0.00046575,120]
[355727996,1741511433322,-240.26748043,0.00046575,120]
[355727997,1741511433349,-259.73251957,0.00046575,120]
[355727998,1741511433359,-500.0,0.00046575,120]
[355727999,1741511433368,-895.35,0.00046575,120]
[355728000,1741511433378,-500.0,0.00046575,120]
[355728001,1741511433388,-500.0,0.00046575,120]
[355728002,1741511433397,-500.0,0.00046575,120]
[355728003,1741511433406,-500.0,0.00046575,120]
[355728004,1741511433416,-500.0,0.00046575,120]
[355728005,1741511433426,-159.70551877,0.00046575,120]
[355728006,1741511433435,-500.0,0.00046575,120]
[355728007,1741511433444,-704.25,0.00046575,120]
[355728008,1741511433454,-543.99473509,0.00046575,120]
[355728009,1741511433463,-500.0,0.00046575,120]
[355728010,1741511433473,-500.0,0.00046575,120]
[355728011,1741511433483,-500.0,0.00046575,120]
[355728012,1741511433492,-7114.38,0.00046575,2]
[355728013,1741511433502,-536.86735511,0.00046575,120]
[355728014,1741511433512,-355.89137033,0.00046575,120]
[355728015,1741511433522,-500.0,0.00046575,120]
[355728016,1741511433531,-500.0,0.00046575,120]
[355728017,1741511433541,-500.0,0.00046575,120]
[355728018,1741511433550,-500.0,0.00046575,120]
[355728019,1741511433562,-500.0,0.00046575,120]
[355728020,1741511433572,-531.76669297,0.00046575,120]
[355728021,1741511433582,-500.0,0.00046575,120]
[355728022,1741511433591,-500.0,0.00046575,120]
[355728023,1741511433601,-500.0,0.00046575,120]
[355728024,1741511433611,-233.0312187,0.00046575,120]
[355728025,1741511433621,-500.0,0.00046575,120]
[355728026,1741511433630,-602.74,0.00046575,120]
[355728027,1741511433640,-500.0,0.00046575,120]
[355728028,1741511433649,-500.0,0.00046575,120]
[355728029,1741511433659,-500.0,0.00046575,120]
[355728030,1741511433668,-500.0,0.00046575,120]
[355728031,1741511433678,-500.0,0.00046575,120]
[355728032,1741511433687,-500.0,0.00046575,120]
[355728033,1741511433697,-500.0,0.00046575,120]
[355728034,1741511433706,-500.0,0.00046575,120]
[355728035,1741511433715,-500.0,0.00046575,120]
[355728036,1741511433725,-500.0,0.00046575,120]
[355728037,1741511433735,-500.0,0.00046575,120]
[355728038,1741511433744,-301.28230103,0.00046575,120]
[355728039,1741511433755,-500.0,0.00046575,120]
[355728040,1741511433764,-500.0,0.00046575,120]
[355728041,1741511433774,-382.19237125,0.00046575,120]
[355728055,1741511438126,-398.52854554,0.00046474,120]
[355728056,1741511438136,-450.0,0.00046474,120]
[355728057,1741511438146,-500.0,0.00046474,2]
[355728058,1741511438156,-345.81641175,0.00046474,2]
[355728059,1741511438166,-500.0,0.00046474,2]
[355728060,1741511438176,-425.81434466,0.00046474,2]
[355728061,1741511438186,-117.80762875,0.00046575,120]
[355728062,1741511438196,-500.0,0.00046575,120]
[355728063,1741511438206,-500.0,0.00046575,120]
[355728064,1741511438216,-500.0,0.00046575,120]
[355728065,1741511438226,-500.0,0.00046575,120]
[355728066,1741511438238,-500.0,0.00046575,120]
[355728067,1741511438248,-250.78758562,0.00046575,120]
[355728068,1741511438259,-500.0,0.00046575,120]
[355728069,1741511438268,-500.0,0.00046575,120]
[355728070,1741511438278,-861.93,0.00046575,120]
[355728071,1741511438289,-861.93,0.00046575,120]
[355728073,1741511438299,-861.93,0.00046575,120]
[355728075,1741511438308,-861.93,0.00046575,120]
[355728077,1741511438317,-500.0,0.00046575,2]
[355728079,1741511438327,-500.0,0.00046575,120]
[355728081,1741511438337,-500.0,0.00046575,120]
[355728083,1741511438346,-500.0,0.00046575,120]
[355728085,1741511438355,-500.0,0.00046575,120]
[355728087,1741511438365,-241.6006717,0.00046575,120]
[355728088,1741511438374,-500.0,0.00046575,120]
[355728089,1741511438383,-500.0,0.00046575,120]
[355728090,1741511438393,-223.36856463,0.00046575,120]
[355728091,1741511438402,-500.0,0.00046575,120]
[355728092,1741511438411,-500.0,0.00046575,120]
[355728093,1741511438421,-500.0,0.00046575,120]
[355728094,1741511438430,-500.0,0.00046575,120]
[355728095,1741511438440,-500.0,0.00046575,120]
[355728096,1741511438449,-500.0,0.00046575,120]
[355728097,1741511438458,-500.0,0.00046575,120]
[355728098,1741511438467,-500.0,0.00046575,120]
[355728099,1741511438476,-500.0,0.00046575,120]
[355728100,1741511438486,-559.09844291,0.00046575,120]
[355728101,1741511438496,-1376.74,0.00046575,120]
[355728102,1741511438506,-500.0,0.00046575,120]
[355728103,1741511438515,-500.0,0.00046575,120]
[355728104,1741511438525,-500.0,0.00046575,120]
[355728105,1741511438535,-500.0,0.00046575,120]
[355728106,1741511438545,-500.0,0.00046575,120]
[355728107,1741511438555,-500.0,0.00046575,120]
[355728108,1741511438569,-500.0,0.00046575,120]
[355728109,1741511438581,-500.0,0.00046575,120]
[355728110,1741511438593,-500.0,0.00046575,120]
[355728111,1741511438604,-500.0,0.00046575,120]
[355728112,1741511438622,-500.0,0.00046575,120]
[355728113,1741511438634,-500.0,0.00046575,120]
[355728114,1741511438651,-635.22,0.00046575,120]
[355728115,1741511438662,-500.0,0.00046575,120]
[355728116,1741511438675,-500.0,0.00046575,120]
[355728117,1741511438687,-500.0,0.00046575,120]
[355728118,1741511438699,-500.0,0.00046575,120]
[355728119,1741511438711,-500.0,0.00046575,120]
[355728120,1741511438722,-500.0,0.00046575,120]
[355728121,1741511438736,-500.0,0.00046575,120]
[355728122,1741511438749,-500.0,0.00046575,120]
[355728123,1741511438761,-500.0,0.00046575,120]
[355728124,1741511438773,-500.0,0.00046575,120]
[355728125,1741511438785,-500.0,0.00046575,120]
[355728126,1741511438797,-500.0,0.00046575,120]
[355728127,1741511438808,-500.0,0.00046575,120]
[355728128,1741511438821,-500.0,0.00046575,120]
[355728129,1741511438833,-500.0,0.00046575,120]
[355728130,1741511438843,-556.56446794,0.00046575,120]
[355728131,1741511438856,-500.0,0.00046575,120]
[355728132,1741511438875,-500.0,0.00046575,120]
[355728133,1741511438885,-1991.62,0.00046575,120]
[355728134,1741511438896,-500.0,0.00046575,120]
[355728135,1741511438907,-5403.39,0.00046575,120]
[355728136,1741511438918,-500.0,0.00046575,120]
[355728137,1741511438928,-500.0,0.00046575,120]
[355728138,1741511438939,-500.0,0.00046575,120]
[355728139,1741511438949,-1528.44,0.00046575,120]
[355728140,1741511438960,-1102.73,0.00046575,120]
[355728141,1741511438970,-500.0,0.00046575,120]
[355728142,1741511438981,-1614.28,0.00046575,120]
[355728143,1741511438991,-500.0,0.00046575,120]
[355728144,1741511439001,-500.0,0.00046575,120]
[355728145,1741511439011,-500.0,0.00046575,120]
[355728146,1741511439021,-500.0,0.00046575,120]
[355728147,1741511439031,-500.0,0.00046575,120]
[355728148,1741511439041,-500.0,0.00046575,120]
[355728149,1741511439051,-500.0,0.00046575,120]
[355728150,1741511439061,-500.0,0.00046575,120]
[355728151,1741511439070,-500.0,0.00046575,120]
[355728152,1741511439079,-500.0,0.00046575,120]
[355728153,1741511439089,-500.0,0.00046575,120]
[355728154,1741511439099,-1397.16,0.00046575,120]
[355728155,1741511439109,-500.0,0.00046575,120]
[355728156,1741511439122,-500.0,0.00046575,120]
[355728157,1741511439133,-500.0,0.00046575,120]
[355728158,1741511439143,-500.0,0.00046575,120]
[355728159,1741511439152,-1015.18,0.00046575,120]
[355728160,1741511439163,-500.0,0.00046575,120]
[355728161,1741511439174,-1015.18,0.00046575,120]
[355728162,1741511439183,-1015.18,0.00046575,120]
[355728163,1741511439193,-500.0,0.00046575,120]
[355728164,1741511439203,-1015.18,0.00046575,120]
[355728165,1741511439213,-1015.18,0.00046575,120]
[355728166,1741511439222,-1015.18,0.00046575,120]
[355728167,1741511439231,-41151.14,0.00046575,7]
[355728168,1741511439241,-1000.0,0.00046575,7]
[355728169,1741511439251,-521.20777933,0.00046575,120]
[355728170,1741511439260,-500.0,0.00046575,120]
[355728171,1741511439270,-500.0,0.00046575,120]
[355728172,1741511439279,-500.0,0.00046575,120]
[355728173,1741511439289,-1973.54,0.00046575,120]
[355728174,1741511439299,-1094.2,0.00046575,120]
[355728175,1741511439308,-500.0,0.00046575,120]
[355728176,1741511439318,-507.69255298,0.00046575,120]
[355728177,1741511439328,-602.93,0.00046575,120]
[355728178,1741511439339,-1465.69,0.00046575,120]
[355728179,1741511439348,-875.01,0.00046575,120]
[355728180,1741511439358,-500.0,0.00046575,120]
[355728181,1741511439371,-500.0,0.00046575,120]
[355728182,1741511439381,-500.0,0.00046575,120]
[355728183,1741511439390,-507.44875007,0.00046575,7]
[355728184,1741511439400,-500.0,0.00046575,120]
[355728185,1741511439413,-500.0,0.00046575,120]
[355728186,1741511439423,-500.0,0.00046575,120]
[355728187,1741511439433,-500.0,0.00046575,120]
[355728188,1741511439443,-500.0,0.00046575,120]
[355728189,1741511439452,-500.0,0.00046575,120]
[355728190,1741511439462,-500.0,0.00046575,120]
[355728191,1741511439471,-500.0,0.00046575,120]
[355728192,1741511439481,-500.0,0.00046575,120]
[355728193,1741511439492,-500.0,0.00046575,120]
[355728194,1741511439501,-500.0,0.00046575,120]
[355728195,1741511439511,-500.0,0.00046575,120]
[355728196,1741511439520,-2161.04,0.00046575,30]
[355728197,1741511439530,-574.83,0.00046575,120]
[355728198,1741511439540,-500.0,0.00046575,120]
[355728199,1741511439550,-511.57342437,0.00046575,120]
[355728200,1741511439561,-500.0,0.00046575,30]
[355728202,1741511439573,-500.0,0.00046575,120]
[355728204,1741511439583,-500.0,0.00046575,120]
[355728205,1741511439592,-497.16,0.00046575,2]
[355728206,1741511439603,-500.0,0.00046575,120]
[355728207,1741511439616,-500.0,0.00046575,120]
[355728208,1741511439625,-500.0,0.00046575,120]
[355728209,1741511439635,-500.0,0.00046575,120]
[355728210,1741511439647,-500.0,0.00046575,120]
[355728211,1741511439657,-500.0,0.00046575,120]
[355728212,1741511439669,-500.0,0.00046575,120]
[355728214,1741511439680,-500.0,0.00046575,120]
[355728215,1741511439690,-500.0,0.00046575,120]
[355728216,1741511439701,-1556.56,0.00046575,120]
[355728217,1741511439711,-500.0,0.00046575,120]
[355728218,1741511439722,-500.0,0.00046575,120]
[355728219,1741511439732,-511.9,0.00046575,120]
[355728220,1741511439742,-500.0,0.00046575,120]
[355728221,1741511439752,-500.0,0.00046575,120]
[355728222,1741511439840,-500.0,0.00046575,120]
[355728223,1741511439851,-500.0,0.00046575,120]
[355728224,1741511439861,-500.0,0.00046575,120]
[355728225,1741511439875,-555.04,0.00046575,120]
[355728226,1741511439884,-500.0,0.00046575,2]
[355728227,1741511439895,-2986.44,0.00046575,120]
[355728228,1741511439905,-500.0,0.00046575,120]
[355728229,1741511439915,-500.0,0.00046575,120]
[355728230,1741511439925,-604.05,0.00046575,120]
[355728232,1741511439935,-500.0,0.00046575,2]
[355728234,1741511439945,-748.36,0.00046575,120]
[355728236,1741511439954,-500.0,0.00046575,120]
[355728238,1741511439964,-683.97,0.00046575,120]
[355728239,1741511439974,-500.0,0.00046575,120]
[355728240,1741511439984,-1000.85066351,0.00046575,2]
[355728241,1741511439994,-500.0,0.00046575,120]
[355728242,1741511440004,-500.03,0.00046575,120]
[355728243,1741511440013,-626.38,0.00046575,120]
[355728244,1741511440023,-500.0,0.00046575,120]
[355728245,1741511440033,-500.0,0.00046575,120]
[355728246,1741511440043,-500.0,0.00046575,2]
[355728247,1741511440053,-500.0,0.00046575,120]
[355728248,1741511440062,-500.0,0.00046575,120]
[355728249,1741511440072,-500.0,0.00046575,120]
[355728250,1741511440082,-500.0,0.00046575,120]
[355728251,1741511440091,-500.0,0.00046575,120]
[355728252,1741511440102,-500.0,0.00046575,120]
[355728253,1741511440114,-500.0,0.00046575,120]
[355728254,1741511440124,-685.41,0.00046575,120]
[355728255,1741511440133,-500.0,0.00046575,120]
[355728256,1741511440144,-1278.24092288,0.00046838,4]
[355728257,1741511440154,-861.93,0.00046857,120]
[355728258,1741511440172,-500.0,0.00046857,120]
[355728259,1741511440186,-1015.18,0.00046857,120]
[355728260,1741511440196,-226.28,0.00046857,120]
[355728261,1741511440205,-6560.85368721,0.00046858,2]
[355728262,1741511440215,-545.11647275,0.00046925,2]
[355728263,1741511440225,-1000.0,0.00047,120]
[355728264,1741511440234,-55555.0,0.00047023,120]
[355728266,1741511440243,-1278.24092288,0.00047103,4]
[355728268,1741511440252,-3834.72276864,0.00047113,4]
[355728270,1741511440262,-861.93,0.00047122,120]
[355728272,1741511440272,-500.0,0.00047122,120]
[355728273,1741511440282,-1015.18,0.00047122,120]
[355728274,1741511440293,-1015.18,0.00047122,120]
[355728275,1741511440303,-1015.18,0.00047122,120]
[355728276,1741511440312,-511.9,0.00047122,120]
[355728277,1741511440322,-500.0,0.00047123,120]
[355728278,1741511440331,-500.0,0.00047123,120]
[355728279,1741511440341,-500.0,0.00047123,120]
[355728280,1741511440350,-500.0,0.00047123,120]
[355728281,1741511440360,-500.0,0.00047123,120]
[355728282,1741511440373,-500.0,0.00047123,120]
[355728283,1741511440383,-500.0,0.00047123,120]
[355728284,1741511440392,-500.0,0.00047123,120]
[355728286,1741511440401,-500.0,0.00047123,120]
[355728287,1741511440411,-500.0,0.00047123,120]
[355728288,1741511440422,-183.58434733,0.00047123,120]
[355728289,1741511440432,-500.0,0.00047123,120]
[355728290,1741511440442,-500.0,0.00047123,120]
[355728291,1741511440452,-12597.42,0.00047123,2]
[355728292,1741511440461,-500.0,0.00047123,120]
[355728293,1741511440470,-500.0,0.00047123,120]
[355728294,1741511440479,-500.0,0.00047123,120]
[355728295,1741511440488,-500.0,0.00047123,120]
[355728296,1741511440498,-500.0,0.00047123,120]
[355728297,1741511440508,-500.0,0.00047123,120]
[355728298,1741511440517,-500.0,0.00047123,120]
[355728299,1741511440527,-500.0,0.00047123,120]
[355728300,1741511440537,-500.0,0.00047123,120]
[355728301,1741511440546,-500.0,0.00047123,120]
[355728302,1741511440555,-500.0,0.00047123,120]
[355728303,1741511440565,-500.0,0.00047123,120]
[355728304,1741511440576,-500.0,0.00047123,120]
[355728305,1741511440586,-500.0,0.00047123,120]
[355728306,1741511440596,-500.0,0.00047123,120]
[355728307,1741511440607,-500.0,0.00047123,120]
[355728308,1741511440617,-500.0,0.00047123,120]
[355728309,1741511440627,-500.0,0.00047123,120]
[355728310,1741511440637,-500.0,0.00047123,120]
[355728311,1741511440646,-500.0,0.00047123,120]
[355728312,1741511440656,-664.83,0.00047123,120]